bitfinex-derivatives/quotes_ETHF0:USTF0_20240924
["timestamp","ask_amount","ask_price","bid_price","bid_amount"]
[1727140689192,4.68009,2644.3,2644.2,2.66]
[1727140689896,4.3019,2644.3,2644.0,2.66]
[1727140690193,0.37821,2644.1,2644.0,2.66]
[1727140690496,0.37821,2644.2,2644.0,2.66]
[1727140690796,3.2078,2644.3,2644.1,0.37821]
[1727140690997,3.2078,2644.7,2644.2,3.7558]
[1727140691299,0.37809,2645.0,2644.6,2.66]
[1727140691500,4.62758,2645.1,2644.9,2.66]
[1727140692090,0.37809,2645.0,2644.9,2.66]
[1727140692290,0.37809,2645.0,2644.6,2.66]
[1727140692501,0.37809,2645.0,2644.4,3.2078]
[1727140692502,0.37809,2645.0,2644.9,2.66]
[1727140693500,4.2495,2645.1,2644.9,2.66]
[1727140693690,3.2078,2645.1,2644.9,2.66]
[1727140693890,1.1062,2645.3,2645.1,0.37806]
[1727140694188,1.1062,2645.3,2645.2,43.46]
[1727140694796,1.48424,2645.3,2645.2,2.66]
[1727140695111,0.37807,2645.1,2645.0,3.6853]
[1727140695295,0.37807,2645.1,2644.5,0.18453759]
[1727140695296,0.3781,2644.9,2644.8,40.8]
[1727140695609,3.2078,2645.1,2644.5,2.66]
[1727140695610,0.37812,2644.8,2644.5,2.66]
[1727140695796,1.41732,2644.8,2644.5,2.66]
[1727140696202,1.0392,2644.8,2644.7,2.66]
[1727140697394,3.58588,2645.1,2644.7,2.66]
[1727140697702,4.62398,2645.1,2645.0,2.66]
[1727140698000,4.2459,2645.1,2644.8,2.66]
[1727140698206,0.3781,2644.9,2644.8,2.66]
[1727140698405,0.3781,2644.9,2644.5,3.27]
[1727140698705,4.2459,2645.1,2644.5,3.27]
[1727140698706,0.37811,2644.8,2644.5,3.27]
[1727140699496,3.2078,2644.8,2644.5,3.27]
[1727140699701,3.2078,2644.8,2644.4,1.0253]
[1727140699702,0.37816,2644.5,2644.4,1.0253]
[1727140700007,0.37818,2644.4,2644.1,3.27]
[1727140700302,0.37819,2644.3,2644.2,0.9532]
[1727140700498,0.37818,2644.4,2644.2,0.9532]
[1727140700699,0.37819,2644.3,2644.2,0.9532]
[1727140701398,5.11972,2644.5,2643.7,3.27]
[1727140701703,3.2078,2644.2,2643.7,4.2232]
[1727140701906,0.37825,2643.9,2643.7,0.9532]
[1727140702497,0.37826,2643.8,2643.7,0.9532]
[1727140702902,0.3783,2643.6,2643.3,1.0199]
[1727140703099,0.3783,2643.6,2643.1,3.358]
[1727140703100,3.2078,2643.9,2643.1,3.27]
[1727140703301,3.2078,2643.9,2643.4,3.27]
[1727140703598,3.2078,2643.9,2643.7,3.27]
[1727140703806,0.9788,2644.1,2643.7,3.27]
[1727140704008,1.35703,2644.1,2643.8,1.0199]
[1727140704312,0.9788,2644.1,2643.8,1.0199]
[1727140704507,1.35701,2644.1,2643.8,1.0199]
[1727140704817,0.9788,2644.1,2643.8,1.0199]
[1727140705503,1.35702,2644.1,2643.8,1.0199]
[1727140705900,0.37823,2644.0,2643.8,1.0199]
[1727140706299,0.37824,2643.9,2643.8,1.0199]
[1727140706602,0.37824,2644.0,2643.8,1.0199]
[1727140706802,0.37824,2643.9,2643.8,1.0199]
[1727140707202,0.37824,2643.9,2643.6,3.2078]
[1727140707398,0.37826,2643.8,2643.6,3.2078]
[1727140707707,0.37827,2643.7,2643.6,3.2078]
[1727140708107,0.37827,2643.7,2643.4,4.2923]
[1727140708506,0.37826,2643.8,2643.4,4.2923]
[1727140708700,0.37827,2643.7,2643.4,4.2923]
[1727140708908,0.9788,2644.1,2643.4,4.2923]
[1727140709305,0.37829,2643.6,2643.4,4.2923]
[1727140709507,0.3783,2643.6,2643.4,4.2923]
[1727140710411,0.3783,2643.5,2643.4,1.0223]
[1727140711111,0.37833,2643.4,2643.1,3.27]
[1727140711311,0.37833,2643.4,2643.2,1.0383]
[1727140711312,0.9598,2643.4,2643.2,1.0383]
[1727140712804,1.33812,2643.4,2643.2,1.0383]
[1727140713005,0.9598,2643.4,2643.2,1.0383]
[1727140713816,0.37829,2643.6,2643.2,1.0383]
[1727140714110,0.37831,2643.5,2643.2,1.0383]
[1727140714314,0.37831,2643.5,2643.3,40.8]
[1727140714509,0.37831,2643.4,2643.2,1.0383]
[1727140715016,0.37831,2643.4,2643.2,41.8383]
[1727140715212,0.37831,2643.5,2643.2,41.8383]
[1727140715414,3.2078,2643.6,2643.4,3.27]
[1727140715613,3.2078,2643.6,2643.2,1.0383]
[1727140715921,0.37833,2643.3,2643.2,1.0383]
[1727140716824,2.0668,2643.5,2643.2,1.0383]
[1727140717114,0.37833,2643.3,2643.2,1.0383]
[1727140718012,1.37212,2643.4,2643.2,1.0383]
[1727140718416,1.37212,2643.4,2643.3,2.66]
[1727140719314,0.9938,2643.4,2643.3,2.66]
[1727140720314,3.2078,2643.6,2643.3,3.03833]
[1727140720614,0.37826,2643.8,2643.4,0.37831]
[1727140720815,4.1928,2643.9,2643.7,2.66]
[1727140720816,4.57105,2643.9,2643.7,2.66]
[1727140721020,0.37826,2643.8,2643.7,2.66]
[1727140722816,0.37831,2643.4,2643.3,0.98779149]
[1727140723010,0.37831,2643.4,2642.9,0.9844]
[1727140723011,0.37835,2643.2,2642.9,0.9844]
[1727140723313,0.37835,2643.2,2643.1,2.66]
[1727140723820,0.37835,2643.2,2642.9,3.6444]
[1727140724022,0.9763,2643.3,2643.1,2.66]
[1727140726406,0.9763,2643.3,2643.1,3.5036]
[1727140729520,0.9763,2643.3,2643.1,3.88195]
[1727140729722,3.2078,2643.7,2643.2,6.991]
[1727140729907,4.1415,2643.7,2643.4,3.0383]
[1727140730113,4.1415,2643.7,2643.5,1.2582]
[1727140731018,4.1415,2643.7,2643.5,0.8799]
[1727140731319,4.51977,2643.7,2643.5,0.8799]
[1727140731910,4.1415,2643.7,2643.5,0.8799]
[1727140734008,4.1415,2643.7,2643.6,0.37829]
[1727140734209,3.2958,2644.8,2643.6,15.69196973]
[1727140734420,0.088,2645.3,2644.7,2.66]
[1727140734724,0.8807,2645.2,2644.7,2.66]
[1727140734920,0.37808,2645.1,2644.7,2.66]
[1727140735125,3.2078,2645.1,2644.7,2.66]
[1727140735331,3.58588,2645.1,2644.7,2.66]
[1727140735721,3.2078,2645.1,2644.7,2.66]
[1727140735913,3.58588,2645.1,2644.7,2.66]
[1727140736120,0.37808,2645.1,2644.7,2.66]
[1727140736925,0.37807,2645.1,2644.7,2.66]
[1727140737124,4.46656,2645.2,2644.7,2.66]
[1727140737326,4.0885,2645.2,2644.7,2.66]
[1727140738028,4.0885,2645.2,2644.5,43.46]
[1727140738425,0.3781,2644.9,2644.5,43.46]
[1727140738825,0.3781,2645.0,2644.5,2.66]
[1727140739025,3.2078,2644.9,2644.5,2.66]
[1727140739225,0.37808,2645.1,2644.5,2.66]
[1727140739528,4.0885,2645.2,2644.7,2.66]
[1727140739723,4.0885,2645.2,2644.8,0.8462]
[1727140740128,4.46656,2645.2,2644.8,0.8462]
[1727140740323,4.0885,2645.2,2644.8,0.8462]
[1727140740632,4.0885,2645.2,2644.3,44.99491756]
[1727140740633,0.37812,2644.8,2644.5,3.5062]
[1727140740820,4.0885,2645.2,2644.1,1.56867634]
[1727140740821,0.37817,2644.5,2644.1,0.8462]
[1727140741625,0.37814,2644.6,2644.3,2.66]
[1727140742029,0.37816,2644.5,2644.3,2.66]
[1727140742330,2.6623,2644.7,2644.3,2.66]
[1727140742526,0.37816,2644.5,2644.3,2.66]
[1727140743527,0.37816,2644.5,2643.8,2.66]
[1727140743528,0.37821,2644.2,2643.8,2.66]
[1727140743725,0.8937,2644.1,2643.9,0.894]
[1727140744126,0.8937,2644.1,2644.0,2.66]
[1727140744421,0.8937,2644.1,2643.9,0.894]
[1727140744622,2.6911,2644.1,2643.8,2.66]
[1727140744825,3.06932,2644.1,2643.8,2.66]
[1727140745135,3.06932,2644.1,2643.7,41.694]
[1727140745136,0.37825,2643.9,2643.7,0.894]
[1727140745326,0.37825,2643.9,2643.6,2.66]
[1727140745719,2.6911,2644.1,2643.4,3.5066]
[1727140745720,3.2078,2643.8,2643.4,3.5066]
[1727140746124,0.37825,2643.9,2643.4,3.5066]
[1727140746327,0.37827,2643.8,2643.4,3.5066]
[1727140746727,3.58607,2643.8,2643.4,3.5066]
[1727140747130,3.2078,2643.8,2643.4,3.5066]
[1727140747434,3.2078,2643.8,2643.6,2.66]
[1727140747625,3.58607,2643.8,2643.6,2.66]
[1727140747826,3.2078,2643.8,2643.6,2.66]
[1727140748626,3.58606,2643.8,2643.6,2.66]
[1727140749434,3.2078,2643.8,2643.6,2.66]
[1727140750124,2.6911,2644.1,2643.6,5.8678]
[1727140750327,2.6911,2644.1,2644.0,2.66]
[1727140750726,2.6911,2644.1,2643.7,2.66]
[1727140750938,0.37824,2644.0,2643.7,2.66]
[1727140751234,2.6911,2644.1,2643.7,2.66]
[1727140751736,3.06932,2644.1,2643.7,2.66]
[1727140752437,2.6911,2644.1,2643.7,2.66]
[1727140752827,3.06932,2644.1,2643.7,2.66]
[1727140753141,2.6911,2644.1,2643.7,2.66]
[1727140753639,3.06932,2644.1,2643.7,2.66]
[1727140754230,3.06931,2644.1,2643.7,2.66]
[1727140755633,0.37823,2644.0,2643.7,2.66]
[1727140755834,2.6911,2644.1,2643.7,2.66]
[1727140756042,2.6911,2644.1,2643.5,3.64711756]
[1727140756043,3.2078,2644.0,2643.5,3.64711756]
[1727140756238,0.37824,2643.9,2643.5,2.66]
[1727140756537,0.37826,2643.8,2643.5,2.66]
[1727140756741,0.37827,2643.7,2643.5,2.66]
[1727140756934,0.37828,2643.7,2643.5,2.66]
[1727140757134,0.8862,2643.6,2643.5,2.66]
[1727140758344,0.8862,2643.6,2643.5,2.6282]
[1727140760447,0.8862,2643.6,2643.3,2.66]
[1727140760743,1.7849,2643.5,2643.1,3.5265]
[1727140761043,3.2078,2643.4,2643.1,3.5265]
[1727140761343,0.37834,2643.3,2642.9,0.98711756]
[1727140761547,0.37834,2643.3,2642.8,3.5831]
[1727140762041,0.37835,2643.2,2642.8,3.5831]
[1727140762245,3.58615,2643.2,2642.8,3.5831]
[1727140762435,0.9197,2643.1,2642.8,3.5831]
[1727140763046,0.9197,2643.1,2643.0,2.66]
[1727140764342,0.9197,2643.1,2642.8,3.5831]
[1727140764639,1.29807,2643.1,2642.8,3.5831]
[1727140765245,1.7384,2643.0,2642.8,3.5831]
[1727140765638,0.37839,2642.9,2642.8,0.9231]
[1727140765839,2.11677,2643.0,2642.8,0.9231]
[1727140766140,2.11678,2643.0,2642.8,0.9231]
[1727140767046,3.58619,2642.9,2642.6,2.66]
[1727140767241,3.2078,2642.9,2642.4,2.66]
[1727140767448,3.2078,2642.8,2642.4,2.66]
[1727140767747,0.37843,2642.7,2642.4,2.66]
[1727140767941,3.58621,2642.8,2642.4,2.66]
[1727140768141,0.8419,2642.6,2642.4,2.66]
[1727140770145,1.22034,2642.6,2642.4,2.66]
[1727140770350,0.8419,2642.6,2642.4,2.66]
[1727140770537,1.8051,2642.5,2642.4,2.66]
[1727140774552,0.8419,2642.6,2642.4,2.66]
[1727140774853,3.2078,2643.1,2642.5,3.784]
[1727140775151,3.2078,2643.1,2642.7,2.66]
[1727140775152,0.888,2643.0,2642.7,2.66]
[1727140775350,0.888,2643.0,2642.8,0.8414]
[1727140775546,1.26638,2643.0,2642.5,2.66]
[1727140775744,1.26638,2643.0,2642.5,3.5014]
[1727140775944,0.888,2643.0,2642.5,3.5014]
[1727140776149,1.26638,2643.0,2642.5,44.3014]
[1727140776655,0.888,2643.0,2642.5,44.3014]
[1727140777356,0.888,2643.0,2642.5,44.67984]
[1727140777553,0.888,2643.0,2642.8,2.66]
[1727140779653,0.888,2643.0,2642.6,2.66]
[1727140779851,3.2078,2642.7,2642.5,0.8414]
[1727140780054,3.2078,2642.7,2642.2,3.2078]
[1727140780353,1.7754,2642.6,2642.2,4.0738]
[1727140780741,0.8946,2642.5,2642.2,4.0738]
[1727140782057,1.27305,2642.5,2642.2,4.0738]
[1727140782249,1.27306,2642.5,2642.2,4.0738]
[1727140782660,1.27306,2642.5,2641.7,1.0184]
[1727140782661,3.2078,2642.4,2641.7,1.0184]
[1727140782959,0.37854,2641.8,2641.6,0.9134]
[1727140783251,0.8444,2641.7,2641.2,0.9134]
[1727140783644,0.8444,2641.7,2641.3,2.66]
[1727140784955,3.2078,2641.6,2641.2,0.9134]
[1727140785169,3.58638,2641.6,2641.2,0.9134]
[1727140785861,0.3786,2641.5,2641.1,2.66]
[1727140786455,3.58638,2641.6,2641.1,2.66]
[1727140786755,3.2078,2641.6,2641.1,2.66]
[1727140786958,3.2078,2641.6,2641.3,2.66]
[1727140787348,3.2078,2641.6,2641.1,2.66]
[1727140788049,3.2078,2641.6,2641.3,2.66]
[1727140789050,3.2078,2641.6,2640.9,44.9385]
[1727140789246,3.2078,2641.6,2641.5,2.66]
[1727140790156,3.2078,2642.3,2641.6,0.37856]
[1727140790453,4.1265,2642.3,2642.0,2.66]
[1727140791045,4.50497,2642.3,2642.1,40.8]
[1727140791249,4.1265,2642.3,2642.1,40.8]
[1727140791659,4.50497,2642.3,2641.8,2.66]
[1727140791862,4.1265,2642.3,2641.8,2.66]
[1727140792059,4.50498,2642.3,2641.9,40.8]
[1727140792558,0.37849,2642.2,2641.8,2.66]
[1727140792761,4.50497,2642.3,2641.8,2.66]
[1727140793859,0.37849,2642.2,2641.8,43.46]
[1727140794058,4.50498,2642.3,2641.8,43.46]
[1727140794561,4.1265,2642.3,2641.8,43.46]
[1727140794754,4.1265,2642.3,2641.8,2.66]
[1727140795154,0.37849,2642.2,2641.8,2.66]
[1727140795562,4.50498,2642.3,2641.8,2.66]
[1727140796356,4.1265,2642.3,2641.8,2.66]
[1727140796561,4.1265,2642.3,2641.7,0.9329]
[1727140796562,3.2078,2642.0,2641.7,0.9329]
[1727140796756,0.37853,2641.9,2641.7,0.9329]
[1727140796957,1.33053,2641.9,2641.7,0.9329]
[1727140797179,0.9404,2641.8,2641.7,0.9329]
[1727140798161,3.2078,2642.0,2641.7,0.9329]
[1727140798361,3.58632,2642.0,2641.7,0.9329]
[1727140798968,0.37854,2641.9,2641.7,0.9329]
[1727140799263,0.37856,2641.7,2641.2,3.2078]
[1727140799460,1.35457,2641.6,2641.3,0.8909]
[1727140799867,0.3786,2641.5,2641.3,0.8909]
[1727140800060,1.2886,2641.5,2641.3,0.8909]
[1727140800374,0.91,2641.5,2641.3,0.8909]
[1727140800560,0.976,2641.6,2641.3,0.8909]
[1727140800867,0.976,2641.6,2641.4,2.66]
[1727140802062,1.35458,2641.6,2641.3,0.8909]
[1727140802255,0.976,2641.6,2641.3,0.8909]
[1727140803765,0.3786,2641.4,2641.2,3.2078]
[1727140804267,2.27649,2641.5,2641.2,3.2078]
[1727140804466,1.8979,2641.5,2641.2,3.2078]
[1727140804664,0.3786,2641.4,2641.2,3.2078]
[1727140804967,1.8979,2641.5,2641.2,3.2078]
[1727140804968,2.27649,2641.5,2641.2,3.2078]
[1727140805662,1.8979,2641.5,2641.2,3.2078]
[1727140805859,3.2078,2641.4,2641.0,0.9777]
[1727140807565,3.5864,2641.4,2641.0,0.9777]
[1727140808180,3.2078,2641.4,2641.0,0.9777]
[1727140809888,3.5864,2641.4,2641.0,0.9777]
[1727140810582,3.2078,2641.4,2641.0,0.9777]
[1727140810784,3.5864,2641.4,2641.0,0.9777]
[1727140811284,3.2078,2641.4,2641.3,2.66]
[1727140811486,3.2078,2641.4,2641.3,3.03862]
[1727140811682,3.2078,2641.4,2641.3,2.66]
[1727140812888,0.976,2641.6,2641.3,3.03862]
[1727140813590,3.2078,2641.8,2641.6,0.37857]
[1727140813895,3.2078,2642.3,2641.7,7.4099]
[1727140814092,3.2078,2642.0,2641.7,0.9643]
[1727140814387,1.32193,2641.9,2641.7,0.9643]
[1727140814778,0.37855,2641.8,2641.3,3.2078]
[1727140814981,0.37857,2641.7,2641.4,0.9643]
[1727140815177,0.37857,2641.6,2641.4,0.9643]
[1727140815584,0.9238,2641.8,2641.4,0.9643]
[1727140815899,0.37857,2641.7,2641.4,0.9643]
[1727140816103,1.30235,2641.8,2641.4,0.9643]
[1727140816390,0.37856,2641.7,2641.4,0.9643]
[1727140816591,0.37857,2641.7,2641.4,0.9643]
[1727140816781,0.37857,2641.6,2641.4,0.9643]
[1727140817181,0.37857,2641.6,2641.0,3.03865]
[1727140817382,0.37857,2641.6,2641.0,3.55]
[1727140817984,0.9238,2641.8,2641.0,3.55]
[1727140817985,3.2078,2641.4,2641.0,3.55]
[1727140818486,0.9013,2641.3,2641.0,3.55]
[1727140818684,0.9013,2641.3,2641.0,3.92866]
[1727140819186,3.2078,2641.7,2641.3,0.37861]
[1727140819397,0.9672,2641.6,2641.2,3.03863]
[1727140820389,0.9672,2641.6,2641.2,2.66]
[1727140820590,0.9672,2641.6,2641.2,3.03863]
[1727140820792,0.9672,2641.6,2641.2,2.66]
[1727140821181,0.9672,2641.6,2641.2,3.03862]
[1727140821989,0.9672,2641.6,2641.2,6.24642]
[1727140822290,0.37854,2641.9,2641.5,2.66]
[1727140822484,0.9111,2641.9,2641.6,0.9376]
[1727140822680,1.28963,2641.9,2641.6,0.9376]
[1727140823290,0.9111,2641.9,2641.6,0.9376]
[1727140823696,1.28963,2641.9,2641.6,0.9376]
[1727140824392,0.9111,2641.9,2641.6,0.9376]
[1727140826194,1.28964,2641.9,2641.6,0.9376]
[1727140826498,0.37857,2641.6,2641.5,0.98760068]
[1727140826800,0.37857,2641.6,2641.4,0.98760068]
[1727140826995,0.9402,2641.5,2641.4,0.98760068]
[1727140827192,0.9402,2641.5,2641.4,2.85800581]
[1727140828294,0.9402,2641.5,2641.4,1.37660479]
[1727140828493,4.186,2642.0,2641.5,0.37858]
[1727140828494,4.56452,2642.0,2641.5,0.37858]
[1727140828803,0.9407,2641.9,2641.7,0.99139013]
[1727140828998,0.9407,2641.9,2641.8,3.03854]
[1727140829198,1.41592758,2642.2,2641.8,5.94660719]
[1727140829396,2.35662758,2642.2,2641.8,4.94783013]
[1727140829789,0.37851,2642.1,2641.8,4.56929013]
[1727140829995,0.37853,2642.0,2641.8,1.90929013]
[1727140830194,0.37853,2642.0,2641.8,0.9179]
[1727140830798,2.35662758,2642.2,2641.8,1.90929013]
[1727140830989,2.73511758,2642.2,2641.8,1.84569013]
[1727140833203,1.31919,2642.2,2641.8,1.84569013]
[1727140833406,1.31919,2642.2,2641.8,0.8543]
[1727140833601,0.9407,2642.2,2641.8,0.8543]
[1727140833800,0.9407,2642.2,2641.8,3.89284]
[1727140835894,0.9407,2642.2,2641.9,0.37853]
[1727140836406,0.9407,2642.2,2642.0,2.66]
[1727140836604,0.9407,2642.2,2642.0,3.0385]
[1727140836801,0.9407,2642.2,2642.0,43.8385]
[1727140837397,0.9407,2642.2,2642.1,0.3785]
[1727140837601,0.9407,2642.2,2642.0,3.03851]
[1727140837999,0.9407,2642.2,2642.0,43.83851]
[1727140838512,0.9407,2642.2,2642.0,3.03851]
[1727140839505,0.9407,2642.2,2642.0,2.66]
[1727140840302,0.9407,2642.2,2642.0,0.99139013]
[1727140841111,0.9407,2642.2,2642.0,3.65139013]
[1727140841424,0.9407,2642.2,2642.0,4.56169013]
[1727140841710,3.2078,2642.7,2642.2,0.37848]
[1727140841916,0.9421,2642.6,2642.4,2.66]
[1727140843006,0.37845,2642.5,2642.3,0.9542]
[1727140843208,0.37844,2642.5,2642.3,0.9542]
[1727140843507,0.37845,2642.5,2642.3,0.9542]
[1727140843906,0.37846,2642.4,2642.3,0.9542]
[1727140844100,0.9421,2642.6,2642.3,0.9542]
[1727140844101,0.37845,2642.5,2642.3,0.9542]
[1727140847703,3.2078,2642.4,2642.3,0.9542]
[1727140847907,4.47676,2642.4,2642.3,0.9542]
[1727140848103,4.47676,2642.4,2641.9,0.99139013]
[1727140848104,0.37849,2642.2,2641.9,0.99139013]
[1727140848409,0.37849,2642.2,2641.8,0.99139013]
[1727140848812,0.37849,2642.2,2641.8,0.98239013]
[1727140849016,0.9019,2642.3,2641.8,0.98239013]
[1727140849216,0.9019,2642.3,2641.3,1.48708519]
[1727140849217,3.2078,2641.9,2641.3,1.48708519]
[1727140849414,3.2078,2641.6,2641.1,1.48708519]
[1727140849620,3.58638,2641.6,2641.0,2.42788519]
[1727140849814,3.58638,2641.6,2641.1,1.37033506]
[1727140850016,0.3786,2641.5,2641.0,1.48708519]
[1727140850310,3.2078,2641.6,2641.1,5.89605269]
[1727140850510,3.2078,2641.6,2641.1,4.52572519]
[1727140851609,3.2078,2641.6,2641.1,4.14708519]
[1727140852012,0.37859,2641.5,2641.0,1.48708519]
[1727140852211,3.2078,2641.6,2641.0,1.48708519]
[1727140852413,1.2689,2641.4,2640.9,44.94708519]
[1727140852606,1.8919,2641.3,2641.0,1.37054976]
[1727140852806,1.8919,2641.3,2640.9,44.94708519]
[1727140853009,1.8919,2641.3,2641.0,1.37053985]
[1727140853312,1.8919,2641.3,2641.1,2.66]
[1727140853713,0.8903,2641.4,2641.1,2.66]
[1727140853911,3.2078,2641.6,2641.1,2.66]
[1727140853912,3.2078,2641.6,2641.3,2.66]
[1727140856218,3.2078,2641.6,2641.3,3.03861]
[1727140857014,0.8903,2641.7,2641.4,0.3786]
[1727140857411,0.8903,2641.7,2641.4,1.3079]
[1727140857714,0.8903,2641.7,2641.5,2.66]
[1727140858117,0.8903,2641.7,2641.4,1.445]
[1727140858316,0.8903,2641.7,2641.4,0.9293]
[1727140858509,0.37859,2641.6,2641.2,1.48708519]
[1727140858713,0.9371,2641.6,2641.2,1.48708519]
[1727140859021,0.9371,2641.6,2641.0,6.11630136]
[1727140859022,0.37862,2641.3,2641.0,4.69488519]
[1727140859226,0.9371,2641.6,2641.0,3.2078]
[1727140859227,1.8791,2641.2,2641.0,3.2078]
[1727140859419,1.8791,2641.2,2641.1,2.85739811]
[1727140859623,1.8791,2641.2,2641.0,5.58638519]
[1727140859624,0.9063,2641.2,2641.0,5.58638519]
[1727140861114,0.9063,2641.2,2641.1,40.8]
[1727140861315,0.9063,2641.2,2641.0,5.58638519]
[1727140861509,0.9063,2641.2,2641.0,4.0993]
[1727140862524,1.28493,2641.2,2641.0,3.2078]
[1727140862727,0.9063,2641.2,2641.0,5.07353519]
[1727140862925,0.9063,2641.2,2641.0,4.69488519]
[1727140863519,1.35139,2641.5,2641.1,0.37864]
[1727140863722,1.41592758,2641.9,2641.3,2.66]
[1727140863934,1.41592758,2641.9,2641.4,0.3786]
[1727140863935,0.9465,2641.8,2641.4,0.3786]
[1727140864617,1.32505,2641.8,2641.3,4.52569519]
[1727140864818,1.32505,2641.8,2641.4,0.3786]
[1727140865325,0.9465,2641.8,2641.3,4.14708519]
[1727140865622,0.37859,2641.5,2641.2,2.37248519]
[1727140865820,0.9682,2641.4,2641.2,2.37248519]
[1727140866422,0.9682,2641.4,2641.2,2.75111519]
[1727140867023,0.37855,2641.8,2641.4,0.37859]
[1727140867229,0.9682,2641.8,2641.3,2.66]
[1727140867420,1.34675,2641.8,2641.3,2.66]
[1727140868226,1.34675,2641.8,2641.4,0.3786]
[1727140868423,1.34675,2641.8,2641.3,3.03861]
[1727140868828,0.37856,2641.7,2641.3,3.03861]
[1727140869030,0.37859,2641.5,2641.2,2.37248519]
[1727140869234,1.3576,2641.4,2641.2,0.8854]
[1727140869529,2.2758,2641.4,2641.2,0.8854]
[1727140870026,1.8972,2641.4,2641.2,0.8854]
[1727140871229,0.9182,2641.4,2641.2,1.26402]
[1727140871431,3.58636,2641.7,2641.4,0.37859]
[1727140871432,3.2078,2641.7,2641.4,0.37859]
[1727140871621,3.2078,2641.7,2641.3,2.66]
[1727140871622,0.8826,2641.6,2641.3,2.66]
[1727140871827,1.8235,2641.6,2641.3,2.66]
[1727140872527,2.20207,2641.6,2641.3,2.66]
[1727140873032,1.8235,2641.6,2641.3,2.66]
[1727140873530,1.8235,2641.6,2641.3,3.03862]
[1727140874124,4.1064,2642.0,2641.6,0.37856]
[1727140874322,4.1064,2642.0,2641.5,2.66]
[1727140874323,3.2078,2642.0,2641.7,0.37856]
[1727140875234,0.9242,2642.2,2641.9,0.37853]
[1727140875431,1.30269,2642.2,2642.0,2.66]
[1727140875630,0.3785,2642.1,2641.8,2.66]
[1727140877127,1.32662,2642.0,2641.6,3.5383]
[1727140877329,0.37853,2641.9,2641.6,3.5383]
[1727140877524,3.58633,2641.9,2641.6,2.66]
[1727140877729,1.34544,2641.8,2641.6,2.66]
[1727140878030,0.9669,2641.8,2641.4,1.2706]
[1727140878233,0.9669,2641.8,2641.4,2.37908519]
[1727140878529,0.9669,2641.8,2641.6,0.37857]
[1727140878722,0.9669,2641.8,2641.5,5.01876519]
[1727140879036,0.9669,2641.8,2641.5,2.66]
[1727140879037,1.34545,2641.8,2641.5,2.66]
[1727140879237,0.9669,2641.8,2641.4,2.37908519]
[1727140879434,0.9669,2641.8,2641.4,0.892]
[1727140879736,1.34545,2641.8,2641.4,0.892]
[1727140880838,0.37857,2641.7,2641.4,0.892]
[1727140881137,0.37857,2641.7,2641.3,1.48708519]
[1727140881831,3.2078,2641.5,2641.3,0.02918519]
[1727140882028,3.2078,2641.5,2640.8,46.7558]
[1727140882029,1.8438,2641.4,2640.9,2.93450136]
[1727140882332,1.8438,2641.4,2641.1,0.37864]
[1727140882923,0.9481,2641.4,2641.0,2.66]
[1727140883127,1.3267,2641.4,2641.1,1.36286983]
[1727140883324,1.3267,2641.4,2641.0,3.03865]
[1727140883532,1.3267,2641.4,2641.1,1.36286946]
[1727140883732,1.3267,2641.4,2641.0,3.03865]
[1727140883929,1.3267,2641.4,2641.1,1.36289993]
[1727140884234,1.3267,2641.4,2641.0,3.03865]
[1727140884427,0.37862,2641.3,2641.1,1.36291432]
[1727140884631,0.37862,2641.3,2641.0,2.66]
[1727140884836,0.37863,2641.2,2641.1,1.36304051]
[1727140885136,1.29954,2641.2,2640.9,0.9593]
[1727140885440,1.29954,2641.2,2641.0,1.36312809]
[1727140885632,1.29954,2641.2,2640.9,0.9593]
[1727140885832,0.9126,2641.1,2641.0,1.36312831]
[1727140887341,0.9209,2641.2,2641.0,1.36312831]
[1727140887532,0.9209,2641.2,2640.9,0.9593]
[1727140887732,0.9209,2641.2,2641.0,1.36325965]
[1727140887933,0.9209,2641.2,2641.0,2.66]
[1727140888136,0.9018,2641.6,2641.1,1.3632113]
[1727140888436,0.9018,2641.6,2641.4,0.37859]
[1727140888645,0.9018,2641.6,2641.5,0.956]
[1727140894649,0.9018,2641.6,2641.5,2.32176386]
[1727140895150,0.9018,2641.6,2641.5,0.956]
[1727140896848,0.9018,2641.6,2641.3,3.03861]
[1727140897153,0.05190182,2641.5,2641.4,1.36577545]
[1727140897646,0.05190182,2641.5,2641.4,1.36577637]
[1727140897843,0.05190182,2641.5,2641.4,1.36577217]
[1727140898548,7.42389182,2641.5,2641.4,1.36577217]
[1727140898849,7.42389182,2641.5,2641.0,2.4690017]
[1727140898850,3.25970182,2641.5,2641.1,2.35384136]
[1727140899049,3.25970182,2641.5,2641.2,1.95781067]
[1727140899050,3.63829182,2641.5,2641.2,1.95781067]
[1727140899248,3.63829182,2641.5,2641.1,1.97520136]
[1727140899249,0.05190182,2641.4,2641.3,1.36587471]
[1727140900945,0.43050182,2641.4,2641.3,1.36587471]
[1727140901247,0.37862,2641.3,2641.0,1.97520136]
[1727140901460,0.9347,2641.2,2641.1,1.36586964]
[1727140901948,1.31333,2641.2,2640.9,1.97520136]
[1727140902146,0.9522,2641.1,2641.0,1.95787745]
[1727140902349,1.00410182,2641.1,2641.0,1.95787745]
[1727140902547,16.65830182,2641.1,2641.0,1.95787745]